fUST/lending_fUST_20250715
["ID","MTS","AMOUNT","RATE_DAILY","PERIOD"]
[372101372,1752520260433,-500.0,0.00017782,2]
[372101373,1752520260443,-500.0,0.00017782,2]
[372101374,1752520260453,-500.0,0.00017782,2]
[372101375,1752520260463,-158.44646998,0.00017782,2]
[372101376,1752520260474,-158.03020304,0.00017782,2]
[372101377,1752520260484,-151.0298654,0.00017782,2]
[372101378,1752520260493,-500.0,0.00017782,2]
[372101379,1752520260504,-500.0,0.00017782,2]
[372101380,1752520260514,-523.392471,0.00017804,2]
[372101381,1752520260524,-523.392471,0.00017804,2]
[372101382,1752520260533,-523.392471,0.00017804,2]
[372101383,1752520260542,-523.392471,0.00017804,2]
[372101384,1752520260552,-203.265745,0.00017804,2]
[372101385,1752520260562,-203.265745,0.00017804,2]
[372101386,1752520260573,-203.265745,0.00017804,2]
[372101387,1752520260582,-203.265745,0.00017804,2]
[372101388,1752520260592,-453.663379,0.00017805,2]
[372101389,1752520260601,-453.663379,0.00017805,2]
[372101390,1752520260610,-151.0,0.00017806,2]
[372101391,1752520260620,-151.0,0.00017807,2]
[372101392,1752520260629,-151.0,0.00017807,2]
[372101393,1752520260639,-212.847825,0.00017808,2]
[372101394,1752520260648,-212.847821,0.00017808,2]
[372101395,1752520260658,-460.0,0.00017808,2]
[372101396,1752520260667,-460.0,0.00017808,2]
[372101397,1752520260677,-460.0,0.00017808,2]
[372101398,1752520260686,-460.0,0.00017808,2]
[372101399,1752520260696,-377.43,0.00017808,2]
[372101400,1752520260705,-460.0,0.00017808,2]
[372101401,1752520260714,-453.663379,0.00017808,2]
[372101402,1752520260724,-453.663379,0.00017808,2]
[372101403,1752520260733,-460.0,0.00017808,2]
[372101404,1752520260743,-460.0,0.00017808,2]
[372101405,1752520260753,-460.0,0.00017808,2]
[372101406,1752520260762,-151.0,0.00017808,2]
[372101407,1752520260771,-460.0,0.00017808,2]
[372101408,1752520260781,-460.0,0.00017808,2]
[372101409,1752520260791,-460.0,0.00017808,2]
[372101410,1752520260800,-460.0,0.00017808,2]
[372101411,1752520260810,-460.0,0.00017808,2]
[372101412,1752520260819,-460.0,0.00017808,2]
[372101413,1752520260831,-460.0,0.00017808,2]
[372101414,1752520260840,-460.0,0.00017808,2]
[372101415,1752520260850,-500.0,0.00017808,2]
[372101416,1752520260860,-151.0,0.00017808,2]
[372101417,1752520260870,-460.0,0.00017808,2]
[372101418,1752520260880,-460.0,0.00017808,2]
[372101419,1752520260889,-460.0,0.00017808,2]
[372101420,1752520260898,-498.93,0.00017808,2]
[372101421,1752520260908,-803.18,0.00017808,2]
[372101422,1752520260918,-516.25,0.00017808,2]
[372101423,1752520260927,-460.0,0.00017808,2]
[372101424,1752520260936,-533.59,0.00017808,2]
[372101425,1752520260946,-460.0,0.00017808,2]
[372101426,1752520260955,-560.98,0.00017808,2]
[372101427,1752520260965,-589.27158093,0.00017808,2]
[372101428,1752520260974,-460.0,0.00017808,2]
[372101429,1752520260984,-791.69,0.00017808,2]
[372101430,1752520260994,-460.0,0.00017808,2]
[372101431,1752520261003,-460.0,0.00017808,2]
[372101432,1752520261012,-460.0,0.00017808,2]
[372101433,1752520261022,-151.0,0.00017808,2]
[372101434,1752520261033,-699.42,0.00017808,2]
[372101435,1752520261043,-460.0,0.00017808,2]
[372101436,1752520261052,-460.0,0.00017808,2]
[372101437,1752520261062,-277.162374,0.00017808,2]
[372101438,1752520261074,-277.162374,0.00017808,2]
[372101439,1752520261083,-460.0,0.00017808,2]
[372101440,1752520261092,-460.0,0.00017808,2]
[372101441,1752520261102,-1526.91,0.00017808,2]
[372101442,1752520261112,-460.0,0.00017808,2]
[372101443,1752520261123,-460.0,0.00017808,2]
[372101444,1752520261132,-777.08,0.00017808,2]
[372101445,1752520261142,-721.29,0.00017808,2]
[372101446,1752520261152,-862.14,0.00017808,2]
[372101447,1752520261166,-460.0,0.00017808,2]
[372101448,1752520261175,-957.36,0.00017808,2]
[372101449,1752520261184,-460.0,0.00017808,2]
[372101450,1752520261194,-474.16,0.00017808,2]
[372101451,1752520261204,-4466.74,0.00017808,2]
[372101452,1752520261214,-460.0,0.00017808,2]
[372101453,1752520261224,-214.669876,0.00017808,2]
[372101454,1752520261236,-214.669876,0.00017808,2]
[372101455,1752520261247,-6194.88,0.00017808,2]
[372101456,1752520261258,-493.17,0.00017808,2]
[372101457,1752520261268,-460.0,0.00017808,2]
[372101458,1752520261277,-569.09,0.00017808,2]
[372101459,1752520261287,-460.0,0.00017808,2]
[372101460,1752520261297,-2614.87,0.00017808,2]
[372101461,1752520261312,-460.0,0.00017808,2]
[372101462,1752520261325,-460.0,0.00017808,2]
[372101463,1752520261335,-1051.68,0.00017808,2]
[372101464,1752520261344,-994.12,0.00017808,2]
[372101465,1752520261354,-460.0,0.00017808,2]
[372101466,1752520261363,-1792.12,0.00017808,2]
[372101467,1752520261373,-460.0,0.00017808,2]
[372101468,1752520261382,-724.35,0.00017808,2]
[372101469,1752520261392,-460.0,0.00017808,2]
[372101470,1752520261403,-627.51,0.00017808,2]
[372101471,1752520261414,-794.94,0.00017808,2]
[372101472,1752520261425,-1457.7,0.00017808,2]
[372101473,1752520261436,-460.0,0.00017808,2]
[372101474,1752520261445,-730.53,0.00017808,2]
[372101475,1752520261455,-460.0,0.00017808,2]
[372101476,1752520261465,-460.0,0.00017808,2]
[372101477,1752520261475,-460.0,0.00017808,2]
[372101478,1752520261485,-485.22,0.00017808,2]
[372101479,1752520261496,-460.0,0.00017808,2]
[372101480,1752520261506,-460.0,0.00017808,2]
[372101481,1752520261517,-460.0,0.00017808,2]
[372101482,1752520261527,-460.0,0.00017808,2]
[372101483,1752520261537,-1500.19,0.00017808,2]
[372101484,1752520261547,-460.0,0.00017808,2]
[372101485,1752520261556,-460.0,0.00017808,2]
[372101486,1752520261566,-460.0,0.00017808,2]
[372101487,1752520261579,-1537.56,0.00017808,2]
[372101488,1752520261589,-814.88,0.00017808,2]
[372101489,1752520261598,-1084.02,0.00017808,2]
[372101490,1752520261607,-460.0,0.00017808,2]
[372101491,1752520261617,-477.27,0.00017808,2]
[372101492,1752520261627,-4635.59,0.00017808,2]
[372101493,1752520261636,-460.0,0.00017808,2]
[372101494,1752520261645,-460.0,0.00017808,2]
[372101495,1752520261655,-460.0,0.00017808,2]
[372101496,1752520261665,-460.0,0.00017808,2]
[372101497,1752520261674,-460.0,0.00017808,2]
[372101498,1752520261684,-460.0,0.00017808,2]
[372101499,1752520261694,-307.28145707,0.00017821,2]
[372101500,1752520261703,-407.0,0.00017865,2]
[372101501,1752520261713,-412.142,0.00017865,2]
[372101502,1752520261722,-5219.6173083,0.000179,2]
[372101503,1752520261732,-215.0738,0.00017979,2]
[372101504,1752520261741,-1000.0,0.00018,2]
[372101505,1752520261750,-151.0,0.00018077,2]
[372101506,1752520261760,-151.0,0.00018077,2]
[372101507,1752520261769,-151.0,0.00018078,2]
[372101508,1752520261779,-151.0,0.00018078,2]
[372101509,1752520261789,-370.876294,0.00018079,2]
[372101510,1752520261798,-370.876294,0.00018079,2]
[372101511,1752520261808,-370.876294,0.00018079,2]
[372101512,1752520261817,-370.876294,0.00018079,2]
[372101513,1752520261828,-151.0,0.00018079,2]
[372101514,1752520261838,-151.0,0.00018079,2]
[372101515,1752520261848,-176.146275,0.00018079,2]
[372101516,1752520261858,-176.146275,0.00018079,2]
[372101517,1752520261866,-176.146275,0.00018079,2]
[372101518,1752520261876,-176.146275,0.00018079,2]
[372101519,1752520261886,-370.876294,0.0001808,2]
[372101520,1752520261895,-370.876294,0.0001808,2]
[372101521,1752520261904,-151.0,0.0001808,2]
[372101522,1752520261914,-151.0,0.0001808,2]
[372101523,1752520261923,-151.0,0.0001808,2]
[372101524,1752520261933,-151.0,0.0001808,2]
[372101525,1752520261942,-176.146275,0.0001808,2]
[372101526,1752520261952,-176.146275,0.0001808,2]
[372101527,1752520261961,-244.309742,0.0001808,2]
[372101528,1752520261971,-244.309742,0.0001808,2]
[372101529,1752520261980,-151.0,0.0001808,2]
[372101530,1752520261990,-155.0,0.00018081,2]
[372101531,1752520261999,-370.876294,0.00018081,2]
[372101532,1752520262009,-370.876294,0.00018081,2]
[372101533,1752520262019,-370.876294,0.00018081,2]
[372101534,1752520262028,-370.876294,0.00018081,2]
[372101535,1752520262038,-151.0,0.00018081,2]
[372101536,1752520262047,-151.0,0.00018081,2]
[372101537,1752520262056,-151.0,0.00018081,2]
[372101538,1752520262065,-151.0,0.00018081,2]
[372101539,1752520262075,-260.007,0.00018081,2]
[372101540,1752520262084,-176.146275,0.00018081,2]
[372101541,1752520262094,-176.146275,0.00018081,2]
[372101542,1752520262103,-176.146275,0.00018081,2]
[372101543,1752520262112,-176.146275,0.00018081,2]
[372101544,1752520262122,-504.68237709,0.00018082,2]
[372101545,1752520262131,-151.0,0.00018082,2]
[372101546,1752520262141,-460.0,0.00018082,2]
[372101547,1752520262150,-460.0,0.00018082,2]
[372101548,1752520262163,-460.0,0.00018082,2]
[372101549,1752520262172,-151.0,0.00018082,2]
[372101550,1752520262182,-460.0,0.00018082,2]
[372101551,1752520262191,-460.0,0.00018082,2]
[372101552,1752520262202,-460.0,0.00018082,2]
[372101553,1752520262211,-460.0,0.00018082,2]
[372101554,1752520262221,-151.0,0.00018082,2]
[372101555,1752520262230,-460.0,0.00018082,2]
[372101556,1752520262243,-460.0,0.00018082,2]
[372101557,1752520262253,-460.0,0.00018082,2]
[372101558,1752520262263,-460.0,0.00018082,2]
[372101559,1752520262380,-460.0,0.00018082,2]
[372101560,1752520262400,-460.0,0.00018082,2]
[372101561,1752520262413,-460.0,0.00018082,2]
[372101562,1752520262423,-460.0,0.00018082,2]
[372101563,1752520262432,-460.0,0.00018082,2]
[372101564,1752520262441,-498.93,0.00018082,2]
[372101565,1752520262450,-803.18,0.00018082,2]
[372101566,1752520262459,-516.25,0.00018082,2]
[372101567,1752520262469,-460.0,0.00018082,2]
[372101568,1752520262478,-533.59,0.00018082,2]
[372101569,1752520262487,-460.0,0.00018082,2]
[372101570,1752520262497,-460.0,0.00018082,2]
[372101571,1752520262506,-791.69,0.00018082,2]
[372101572,1752520262516,-460.0,0.00018082,2]
[372101573,1752520262525,-460.0,0.00018082,2]
[372101574,1752520262535,-460.0,0.00018082,2]
[372101575,1752520262545,-699.42,0.00018082,2]
[372101576,1752520262554,-460.0,0.00018082,2]
[372101577,1752520262564,-460.0,0.00018082,2]
[372101578,1752520262573,-277.162374,0.00018082,2]
[372101579,1752520262584,-277.162374,0.00018082,2]
[372101580,1752520262594,-460.0,0.00018082,2]
[372101581,1752520262603,-251.898311,0.00018082,2]
[372101582,1752520262612,-1526.91,0.00018082,2]
[372101583,1752520262622,-460.0,0.00018082,2]
[372101584,1752520262631,-460.0,0.00018082,2]
[372101585,1752520262641,-777.08,0.00018082,2]
[372101586,1752520262650,-862.14,0.00018082,2]
[372101587,1752520262660,-721.29,0.00018082,2]
[372101588,1752520262669,-460.0,0.00018082,2]
[372101589,1752520262678,-957.36,0.00018082,2]
[372101590,1752520262688,-460.0,0.00018082,2]
[372101591,1752520262697,-474.16,0.00018082,2]
[372101592,1752520262706,-4466.74,0.00018082,2]
[372101593,1752520262715,-460.0,0.00018082,2]
[372101594,1752520262725,-214.669876,0.00018082,2]
[372101595,1752520262734,-214.669876,0.00018082,2]
[372101596,1752520262743,-6194.88,0.00018082,2]
[372101597,1752520262753,-493.17,0.00018082,2]
[372101598,1752520262762,-460.0,0.00018082,2]
[372101599,1752520262771,-569.09,0.00018082,2]
[372101600,1752520262782,-460.0,0.00018082,2]
[372101601,1752520262791,-2614.87,0.00018082,2]
[372101602,1752520262801,-460.0,0.00018082,2]
[372101603,1752520262811,-460.0,0.00018082,2]
[372101604,1752520262820,-1051.68,0.00018082,2]
[372101605,1752520262832,-994.12,0.00018082,2]
[372101606,1752520262842,-1792.12,0.00018082,2]
[372101607,1752520262851,-460.0,0.00018082,2]
[372101608,1752520262861,-460.0,0.00018082,2]
[372101609,1752520262871,-151.0,0.00018082,2]
[372101610,1752520262881,-724.35,0.00018082,2]
[372101611,1752520262891,-460.0,0.00018082,2]
[372101612,1752520262901,-794.94,0.00018082,2]
[372101613,1752520262910,-627.51,0.00018082,2]
[372101614,1752520262920,-1457.7,0.00018082,2]
[372101615,1752520262930,-460.0,0.00018082,2]
[372101616,1752520262939,-730.53,0.00018082,2]
[372101617,1752520262949,-460.0,0.00018082,2]
[372101618,1752520262958,-460.0,0.00018082,2]
[372101619,1752520262967,-460.0,0.00018082,2]
[372101620,1752520262976,-485.22,0.00018082,2]
[372101621,1752520262985,-460.0,0.00018082,2]
[372101622,1752520262995,-460.0,0.00018082,2]
[372101623,1752520263004,-460.0,0.00018082,2]
[372101624,1752520263014,-460.0,0.00018082,2]
[372101625,1752520263023,-1500.19,0.00018082,2]
[372101626,1752520263032,-460.0,0.00018082,2]
[372101627,1752520263042,-1537.56,0.00018082,2]
[372101628,1752520263052,-814.88,0.00018082,2]
[372101629,1752520263062,-1084.02,0.00018082,2]
[372101630,1752520263071,-477.27,0.00018082,2]
[372101631,1752520263082,-4635.59,0.00018082,2]
[372101632,1752520263092,-460.0,0.00018082,2]
[372101633,1752520263102,-460.0,0.00018082,2]
[372101634,1752520263111,-460.0,0.00018082,2]
[372101635,1752520263121,-460.0,0.00018082,2]
[372101636,1752520263131,-460.0,0.00018082,2]
[372101637,1752520263141,-460.0,0.00018082,2]
[372101638,1752520263153,-151.0,0.00018082,2]
[372101639,1752520263173,-1500.0,0.00018082,7]
[372101640,1752520263185,-1500.0,0.00018082,7]
[372101641,1752520263195,-1500.0,0.00018082,7]
[372101642,1752520263206,-1500.0,0.00018082,7]
[372101643,1752520263216,-1500.0,0.00018082,7]
[372101644,1752520263225,-1500.0,0.00018082,7]
[372101645,1752520263235,-1500.0,0.00018082,7]
[372101646,1752520263244,-1500.0,0.00018082,7]
[372101647,1752520263253,-1500.0,0.00018082,7]
[372101648,1752520263263,-1500.0,0.00018082,7]
[372101649,1752520263271,-1500.0,0.00018082,7]
[372101650,1752520263280,-1500.0,0.00018082,7]
[372101651,1752520263289,-1500.0,0.00018082,7]
[372101652,1752520263299,-1500.0,0.00018082,7]
[372101653,1752520263308,-1500.0,0.00018082,7]
[372101654,1752520263318,-1500.0,0.00018082,7]
[372101655,1752520263327,-1500.0,0.00018082,7]
[372101656,1752520263337,-1500.0,0.00018082,7]
[372101657,1752520263347,-1500.0,0.00018082,7]
[372101658,1752520263356,-1500.0,0.00018082,7]
[372101659,1752520263366,-1500.0,0.00018082,7]
[372101660,1752520263376,-12600.81778503,0.00018082,7]
[372101661,1752520263386,-214.33456592,0.00018082,7]
[372101662,1752520263396,-3135.05810924,0.00018106,2]
[372101663,1752520263406,-203.265745,0.00018106,2]
[372101664,1752520263416,-203.265745,0.00018106,2]
[372101665,1752520263425,-1751.0,0.0001811,2]
[372101666,1752520263436,-1751.0,0.0001811,2]
[372101667,1752520263446,-1751.0,0.0001811,2]
[372101668,1752520263456,-1751.0,0.0001811,2]
[372101669,1752520263469,-1751.0,0.0001811,2]
[372101670,1752520263478,-1751.0,0.0001811,2]
[372101671,1752520263488,-1751.0,0.0001811,2]
[372101672,1752520263498,-1751.0,0.0001811,2]
[372101673,1752520263508,-160.0,0.0001811,2]
[372101674,1752520263518,-318.0,0.0001811,2]
[372101675,1752520263527,-318.0,0.0001811,2]
[372101676,1752520263535,-151.0,0.00018141,2]
[372101677,1752520263544,-151.0,0.00018141,2]
[372101678,1752520263554,-151.0,0.00018141,2]
[372101679,1752520263564,-151.0,0.00018141,2]
[372101680,1752520263574,-5219.61730802,0.00018176,2]
[372101681,1752520263587,-523.392471,0.00018176,2]
[372101682,1752520263597,-523.392471,0.00018176,2]
[372101683,1752520263611,-1000.0,0.00018188,2]
[372101684,1752520263621,-1084.8276509,0.00018188,2]
[372101685,1752520263630,-1000.0,0.00018188,2]
[372101686,1752520263639,-1000.0,0.00018188,2]
[372101687,1752520263648,-160.0,0.00018235,2]
[372101688,1752520263658,-151.0,0.00018334,2]
[372101689,1752520263668,-151.0,0.00018334,2]
[372101690,1752520263678,-151.0,0.00018334,2]
[372101691,1752520263688,-151.0,0.00018356,2]
[372101692,1752520263697,-151.333001,0.00018356,2]
[372101693,1752520263707,-151.0,0.00018356,2]
[372101694,1752520263717,-151.0,0.00018356,2]
[372101695,1752520263727,-460.0,0.00018356,2]
[372101696,1752520263737,-460.0,0.00018356,2]
[372101697,1752520263747,-460.0,0.00018356,2]
[372101698,1752520263758,-460.0,0.00018356,2]
[372101699,1752520263767,-453.663379,0.00018356,2]
[372101700,1752520263776,-453.663379,0.00018356,2]
[372101701,1752520263787,-460.0,0.00018356,2]
[372101702,1752520263797,-460.0,0.00018356,2]
[372101703,1752520263808,-509.52753912,0.00018356,2]
[372101704,1752520263818,-238.128338,0.00018356,2]
[372101705,1752520263830,-460.0,0.00018356,2]
[372101706,1752520263841,-244.309742,0.00018356,2]
[372101707,1752520263850,-347.84,0.00018356,2]
[372101708,1752520263860,-244.309742,0.00018356,2]
[372101709,1752520263871,-460.0,0.00018356,2]
[372101710,1752520263883,-460.0,0.00018356,2]
[372101711,1752520263903,-151.0,0.00018356,2]
[372101712,1752520263916,-460.0,0.00018356,2]
[372101713,1752520263927,-460.0,0.00018356,2]
[372101714,1752520263937,-460.0,0.00018356,2]
[372101715,1752520263956,-460.0,0.00018356,2]
[372101716,1752520263967,-460.0,0.00018356,2]
[372101717,1752520263976,-498.93,0.00018356,2]
[372101718,1752520263986,-803.18,0.00018356,2]
[372101719,1752520263996,-516.25,0.00018356,2]
[372101720,1752520264006,-460.0,0.00018356,2]
[372101721,1752520264015,-533.59,0.00018356,2]
[372101722,1752520264025,-460.0,0.00018356,2]
[372101723,1752520264035,-460.0,0.00018356,2]
[372101724,1752520264044,-791.69,0.00018356,2]
[372101725,1752520264053,-460.0,0.00018356,2]
[372101726,1752520264062,-460.0,0.00018356,2]
[372101727,1752520264072,-151.0,0.00018356,2]
[372101728,1752520264083,-699.42,0.00018356,2]
[372101729,1752520264092,-460.0,0.00018356,2]
[372101730,1752520264102,-460.0,0.00018356,2]
[372101731,1752520264112,-460.0,0.00018356,2]
[372101732,1752520264122,-1526.91,0.00018356,2]
[372101733,1752520264131,-460.0,0.00018356,2]
[372101734,1752520264140,-777.08,0.00018356,2]
[372101735,1752520264150,-721.29,0.00018356,2]
[372101736,1752520264162,-862.14,0.00018356,2]
[372101737,1752520264171,-179.99235221,0.00018356,2]
[372101738,1752520264180,-957.36,0.00018356,2]
[372101739,1752520264190,-474.16,0.00018356,2]
[372101740,1752520264199,-4466.74,0.00018356,2]
[372101741,1752520264210,-460.0,0.00018356,2]
[372101742,1752520264219,-6194.88,0.00018356,2]
[372101743,1752520264229,-493.17,0.00018356,2]
[372101744,1752520264238,-460.0,0.00018356,2]
[372101745,1752520264249,-569.09,0.00018356,2]
[372101746,1752520264260,-460.0,0.00018356,2]
[372101747,1752520264269,-2614.87,0.00018356,2]
[372101748,1752520264277,-1051.68,0.00018356,2]
[372101749,1752520264286,-994.12,0.00018356,2]
[372101750,1752520264295,-1792.12,0.00018356,2]
[372101751,1752520264306,-460.0,0.00018356,2]
[372101752,1752520264315,-460.0,0.00018356,2]
[372101753,1752520264324,-724.35,0.00018356,2]
[372101754,1752520264334,-794.94,0.00018356,2]
[372101755,1752520264344,-627.51,0.00018356,2]
[372101756,1752520264353,-1457.7,0.00018356,2]
[372101757,1752520264363,-460.0,0.00018356,2]
[372101758,1752520264372,-730.53,0.00018356,2]
[372101759,1752520264382,-460.0,0.00018356,2]
[372101760,1752520264391,-460.0,0.00018356,2]
[372101761,1752520264401,-485.22,0.00018356,2]
[372101762,1752520264410,-460.0,0.00018356,2]
[372101763,1752520264419,-460.0,0.00018356,2]
[372101764,1752520264429,-460.0,0.00018356,2]
[372101765,1752520264439,-460.0,0.00018356,2]
[372101766,1752520264448,-1500.19,0.00018356,2]
[372101767,1752520264457,-460.0,0.00018356,2]
[372101768,1752520264466,-1537.56,0.00018356,2]
[372101769,1752520264476,-814.88,0.00018356,2]
[372101770,1752520264485,-1084.02,0.00018356,2]
[372101771,1752520264495,-477.27,0.00018356,2]
[372101772,1752520264504,-4635.59,0.00018356,2]
[372101773,1752520264608,-460.0,0.00018356,2]
[372101774,1752520264618,-460.0,0.00018356,2]
[372101775,1752520264628,-460.0,0.00018356,2]
[372101776,1752520264638,-460.0,0.00018356,2]
[372101777,1752520264647,-150.05,0.00018358,2]
[372101778,1752520264657,-647.0,0.00018358,2]
[372101779,1752520264667,-2154.0,0.00018358,2]
[372101780,1752520264676,-968.0,0.00018358,2]
[372101781,1752520264686,-2265.62519584,0.00018375,2]
[372101782,1752520264696,-199.0,0.00018378,2]
[372101783,1752520264706,-151.0,0.00018451,2]
[372101784,1752520264715,-151.0,0.00018451,2]
[372101785,1752520264724,-151.0,0.00018451,2]
[372101786,1752520264734,-266.932146,0.00018451,2]
[372101787,1752520264743,-151.0,0.00018451,2]
[372101788,1752520264753,-154.902806,0.00018451,2]
[372101789,1752520264762,-5219.61730802,0.00018452,2]
[372101790,1752520264772,-293.0,0.00018488,2]
[372101791,1752520264781,-1482.94796019,0.00018496,2]
[372101792,1752520264793,-1000.0,0.000185,2]
[372101793,1752520264802,-293.0,0.00018523,2]
[372101794,1752520264811,-199.0,0.00018537,2]
[372101795,1752520264821,-199.0,0.00018544,2]
[372101796,1752520264830,-151.0,0.00018554,2]
[372101797,1752520264840,-243.543829,0.00018554,2]
[372101798,1752520264849,-199.0,0.00018563,2]
[372101799,1752520264858,-151.0,0.0001863,2]
[372101800,1752520264869,-151.0,0.0001863,2]
[372101801,1752520264879,-460.0,0.0001863,2]
[372101802,1752520264888,-370.876294,0.0001863,2]
[372101803,1752520264897,-370.876294,0.0001863,2]
[372101804,1752520264907,-460.0,0.0001863,2]
[372101805,1752520264917,-460.0,0.0001863,2]
[372101806,1752520264926,-191.018298,0.0001863,2]
[372101807,1752520264935,-176.146275,0.0001863,2]
[372101808,1752520264945,-176.146275,0.0001863,2]
[372101809,1752520264954,-151.0,0.0001863,2]
[372101810,1752520264964,-460.0,0.0001863,2]
[372101811,1752520264974,-460.0,0.0001863,2]
[372101812,1752520264981,-228.54568651,0.0001863,2]
[372101813,1752520264989,-460.0,0.0001863,2]
[372101814,1752520264997,-460.0,0.0001863,2]
[372101815,1752520265005,-460.0,0.0001863,2]
[372101816,1752520265013,-460.0,0.0001863,2]
[372101817,1752520265022,-460.0,0.0001863,2]
[372101818,1752520265030,-460.0,0.0001863,2]
[372101819,1752520265038,-164.09,0.0001863,2]
[372101820,1752520265045,-460.0,0.0001863,2]
[372101821,1752520265052,-498.93,0.0001863,2]
[372101822,1752520265060,-803.18,0.0001863,2]
[372101823,1752520265070,-516.25,0.0001863,2]
[372101824,1752520265080,-460.0,0.0001863,2]
[372101825,1752520265089,-533.59,0.0001863,2]
[372101826,1752520265098,-460.0,0.0001863,2]
[372101827,1752520265108,-460.0,0.0001863,2]
[372101828,1752520265117,-791.69,0.0001863,2]
[372101829,1752520265127,-460.0,0.0001863,2]
[372101830,1752520265137,-460.0,0.0001863,2]
[372101831,1752520265146,-699.42,0.0001863,2]
[372101832,1752520265156,-460.0,0.0001863,2]
[372101833,1752520265170,-460.0,0.0001863,2]
[372101834,1752520265179,-277.162374,0.0001863,2]
[372101835,1752520265189,-277.162374,0.0001863,2]
[372101836,1752520265200,-460.0,0.0001863,2]
[372101837,1752520265210,-1526.91,0.0001863,2]
[372101838,1752520265222,-460.0,0.0001863,2]
[372101839,1752520265233,-777.08,0.0001863,2]
[372101840,1752520265244,-721.29,0.0001863,2]
[372101841,1752520265253,-862.14,0.0001863,2]
[372101842,1752520265262,-957.36,0.0001863,2]
[372101843,1752520265272,-474.16,0.0001863,2]
[372101844,1752520265281,-4466.74,0.0001863,2]
[372101845,1752520265289,-460.0,0.0001863,2]
[372101846,1752520265297,-214.669876,0.0001863,2]
[372101847,1752520265305,-214.669876,0.0001863,2]
[372101848,1752520265314,-6194.88,0.0001863,2]
[372101849,1752520265323,-493.17,0.0001863,2]
[372101850,1752520265333,-460.0,0.0001863,2]
[372101851,1752520265343,-569.09,0.0001863,2]
[372101852,1752520265352,-2614.87,0.0001863,2]
[372101853,1752520265361,-460.0,0.0001863,2]
[372101854,1752520265371,-1051.68,0.0001863,2]
[372101855,1752520265381,-994.12,0.0001863,2]
[372101856,1752520265392,-1792.12,0.0001863,2]
[372101857,1752520265402,-460.0,0.0001863,2]
[372101858,1752520265412,-460.0,0.0001863,2]
[372101859,1752520265421,-151.0,0.0001863,2]
[372101860,1752520265431,-724.35,0.0001863,2]
[372101861,1752520265440,-794.94,0.0001863,2]
[372101862,1752520265450,-627.51,0.0001863,2]
[372101863,1752520265461,-730.53,0.0001863,2]
[372101864,1752520265470,-1457.7,0.0001863,2]
[372101865,1752520265479,-460.0,0.0001863,2]
[372101866,1752520265492,-460.0,0.0001863,2]
[372101867,1752520265502,-485.22,0.0001863,2]
[372101868,1752520265513,-460.0,0.0001863,2]
[372101869,1752520265523,-460.0,0.0001863,2]
[372101870,1752520265533,-195.25503601,0.0001863,2]
[372101871,1752520265543,-1500.19,0.0001863,2]